Workbook

Sheet ------ (hidden)

Sheet VXXXXX (hidden)

Sheet 징수실적(7월말)
G1: 2016년 7월분 지방세 징수실적 보고서 (2016 회계)
R4: (단위 : 천원)
A5: 구 분 | E5: 목 표액 (예산액) | G5: 부 과 액 | I5: 징 수 액 | K5: 불납결손액 | M5: 미 수 납 액 | N5: 징 수 비 율 | Q5: 과오납 환부액
E6: 당 초 | F6: 최 종 | G6: 본월분 | H6: 누 계 | I6: 본월분 | J6: 누 계 | K6: 본월분 | L6: 누 계 | N6: 대목표 (당초) | O6: 대목표 (최종) | P6: 대부과 | Q6: 본월분 | R6: 누 계
A7: 총 괄 | B7: 합 계 | E7: =SUM(E8:E9) -> 244,230,000 | F7: 279,079,000 | G7: =SUM(G8:G9) -> 42,272,809 | H7: 278,381,966 | I7: 31,667,740 | J7: =SUM(J8:J9) -> 255,741,292 | K7: 327,631 | L7: 904,572 | M7: 21,736,102 | N7: =+J7/E7*100 -> 104.7 | O7: =+J7/F7*100 -> 91.6 | P7: =+J7/H7*100 -> 91.9 | Q7: =SUM(Q8:Q9) -> 565,308 | R7: =SUM(R8:R9) -> 5,351,938
B8: 도 세 | E8: =E11+E46+E47 -> 79,180,000 | F8: 79,180,000 | G8: 18,081,082 | H8: 94,248,338 | I8: 13,470,045 | J8: 86,851,143 | K8: 80,341 | L8: 153,594 | M8: 7,243,601 | N8: 109.7 | O8: 109.7 | P8: 92.2 | Q8: =Q11+Q46+Q47 -> 68,222 | R8: =R11+R46+R47 -> 1,600,390
B9: 시 군 세 | E9: =E31+E48 -> 165,050,000 | F9: =F31+F48 -> 199,899,000 | G9: 24,191,727 | H9: 184,133,628 | I9: 18,197,695 | J9: 168,890,149 | K9: 247,290 | L9: 750,978 | M9: 14,492,501 | N9: 102.3 | O9: 84.5 | P9: 91.7 | Q9: =Q31+Q48 -> 497,086 | R9: =R31+R48 -> 3,751,548
A10: 현 년 도 | B10: 계 | E10: =SUM(E11,E31) -> 242,980,000 | F10: 277,729,000 | G10: 42,351,634 | H10: 270,711,454 | I10: 31,595,219 | J10: 255,829,382 | K10: 364 | L10: 384 | M10: 14,881,688 | N10: 105.3 | O10: 92.1 | P10: 94.5 | Q10: =SUM(Q11,Q31) -> 461,236 | R10: =SUM(R11,R31) -> 1,791,531
B11: 도 세 | C11: 소 계 | E11: =SUM(E12,E13,E16,E19:E23,E24) -> 78,430,000 | F11: 78,430,000 | G11: 18,087,308 | H11: 93,031,077 | I11: 13,444,605 | J11: 87,519,937 | K11: 84 | L11: 104 | M11: 5,511,036 | N11: 111.6 | O11: 111.6 | P11: 94.1 | Q11: =SUM(Q12,Q13,Q16,Q19:Q23,Q24) -> 54,913 | R11: =SUM(R12,R13,R16,R19:R23,R24) -> 205,478
C12: 취 득 세 | E12: 41,200,000 | F12: 41,200,000 | G12: 5,849,011 | H12: 63,219,601 | I12: 5,933,802 | J12: 63,063,633 | M12: =H12-J12-L12 -> 155,968 | N12: 153.1 | O12: 153.1 | P12: 99.8 | Q12: 40,202 | R12: 143,487
C13: 등 록 면허세 | D13: 소 계 | E13: =SUM(E14:E15) -> 6,500,000 | F13: 6,500,000 | G13: 895,600 | H13: 4,871,886 | I13: 897,143 | J13: 4,848,622 | K13: 0 | L13: 20 | M13: 23,244 | N13: 74.6 | O13: 74.6 | P13: 99.5 | Q13: =SUM(Q14:Q15) -> 2,885 | R13: =SUM(R14:R15) -> 16,035
D14: 등록분 | E14: 5,550,000 | F14: 5,550,000 | G14: 874,861 | H14: 3,899,685 | I14: 874,460 | J14: 3,899,283 | M14: =H14-J14-L14 -> 402 | N14: 70.3 | O14: 70.3 | P14: 100.0 | Q14: 2,842 | R14: 15,510
D15: 면허분 | E15: 950,000 | F15: 950,000 | G15: 20,739 | H15: 972,201 | I15: 22,683 | J15: 949,339 | K15: 0 | L15: 20 | M15: =H15-J15-L15 -> 22,842 | N15: 99.9 | O15: 99.9 | P15: 97.6 | Q15: 43 | R15: 525
C16: 지 역 자 원 시설세 | D16: 소 계 | E16: =SUM(E17:E18) -> 9,200,000 | F16: 9,200,000 | G16: 8,856,247 | H16: 10,100,049 | I16: 4,687,904 | J16: 5,924,700 | K16: 0 | L16: 0 | M16: 4,175,349 | N16: 64.4 | O16: 64.4 | P16: 58.7 | Q16: =SUM(Q17:Q18) -> 270 | R16: =SUM(R17:R18) -> 270
D17: 특정자원 | E17: 2,035,000 | F17: 2,035,000 | G17: 110,435 | H17: 1,343,593 | I17: 105,325 | J17: 1,338,137 | M17: =H17-J17-L17 -> 5,456 | N17: 65.8 | O17: 65.8 | P17: 99.6
D18: 특정부동산 | E18: 7,165,000 | F18: 7,165,000 | G18: 8,745,812 | H18: 8,756,456 | I18: 4,582,579 | J18: 4,586,563 | M18: 4,169,893 | N18: 64.0 | O18: 64.0 | P18: 52.4 | Q18: 270 | R18: 270
C19: 지방소비세 | M19: 0
C20: 등 록 세 | G20: 60,881 | H20: 106,170 | I20: 60,881 | J20: 106,170 | M20: 0 | P20: 100.0 | Q20: 614 | R20: 2,034
C21: 면 허 세 | M21: 0
C22: 공동시설세 | M22: 0
C23: 지역개발세 | M23: 0
C24: 지 방 교 육 세 | D24: 소 계 | E24: =SUM(E25:E30) -> 21,530,000 | F24: =SUM(F25:F30) -> 21,530,000 | G24: 2,425,569 | H24: 14,733,371 | I24: 1,864,875 | J24: 13,576,812 | K24: 84 | L24: 84 | M24: 1,156,475 | N24: 63.1 | O24: 63.1 | P24: 92.2 | Q24: =SUM(Q25:Q30) -> 10,942 | R24: =SUM(R25:R30) -> 43,652
D25: 취득세분 | E25: 2,456,000 | F25: 2,456,000 | G25: 359,416 | H25: 3,469,421 | I25: 366,268 | J25: 3,460,836 | M25: =H25-J25-L25 -> 8,585 | N25: 140.9 | O25: 140.9 | P25: 99.8 | Q25: 3,689 | R25: 8,079
D26: 등록면허세분 | E26: 1,789,000 | F26: 1,789,000 | G26: 157,866 | H26: 664,887 | I26: 157,866 | J26: 664,885 | M26: 2 | N26: 37.2 | O26: 37.2 | P26: 100.0 | Q26: 568 | R26: 2,357
D27: 주민세분 | E27: 85,000 | F27: 85,000 | G27: 5 | H27: 691 | I27: 10 | J27: 691 | M27: 0 | N27: 0.8 | O27: 0.8 | P27: 100.0
D28: 재산세분 | E28: 3,000,000 | F28: 3,000,000 | G28: 1,893,256 | H28: 1,915,571 | I28: 1,086,096 | J28: 1,107,206 | M28: 808,365 | N28: 36.9 | O28: 36.9 | P28: 57.8 | Q28: 96 | R28: 101
D29: 자동차세분 | E29: 5,800,000 | F29: 5,800,000 | G29: 12,365 | H29: 4,065,837 | I29: 251,974 | J29: 3,726,230 | K29: 84 | L29: 84 | M29: 339,523 | N29: 64.2 | O29: 64.2 | P29: 91.6 | Q29: 6,589 | R29: 33,018
D30: 담배소비세분 | E30: 8,400,000 | F30: 8,400,000 | G30: 2,661 | H30: 4,616,964 | I30: 2,661 | J30: 4,616,964 | M30: 0 | N30: 55.0 | O30: 55.0 | P30: 100.0 | R30: 97
B31: 시 군 세 | C31: 소 계 | E31: =SUM(E32,E33,E34,E37:E44) -> 164,550,000 | F31: =SUM(F32,F33,F34,F37:F44) -> 199,299,000 | G31: 24,264,326 | H31: =SUM(H32,H33,H34,H37:H44) -> 177,680,377 | I31: 18,150,614 | J31: 168,309,445 | K31: 280 | L31: 280 | M31: 9,370,652 | N31: 102.3 | O31: 84.5 | P31: 94.7 | Q31: =SUM(Q32,Q33,Q34,Q37:Q44) -> 406,323 | R31: =SUM(R32,R33,R34,R37:R44) -> 1,586,053
C32: 주 민 세 | E32: 10,050,000 | F32: 12,250,000 | G32: 1,551,153 | H32: 6,946,725 | I32: 1,550,739 | J32: 6,870,953 | M32: =H32-J32-L32 -> 75,772 | N32: 68.4 | O32: 56.1 | P32: 98.9 | Q32: 6,099 | R32: 7,752
C33: 재 산 세 | E33: 31,000,000 | F33: 34,000,000 | G33: 15,925,626 | H33: 16,046,064 | I33: 9,041,749 | J33: 9,149,884 | M33: =H33-J33-L33 -> 6,896,180 | N33: 29.5 | O33: 26.9 | P33: 57.0 | Q33: 481 | R33: 539
C34: 자동 차세 | D34: 소 계 | E34: =SUM(E35:E36) -> 44,200,000 | F34: =SUM(F35:F36) -> 52,249,000 | G34: 3,532,459 | H34: 37,499,158 | I34: 4,395,155 | J34: =SUM(J35:J36) -> 36,254,605 | K34: 280 | L34: 280 | M34: 1,244,273 | N34: 82.0 | O34: 69.4 | P34: 96.7 | Q34: =SUM(Q35:Q36) -> 26,889 | R34: =SUM(R35:R36) -> 118,123
D35: 자동차분 | E35: 19,400,000 | F35: 20,500,000 | G35: 40,776 | H35: 14,676,211 | I35: 903,472 | J35: 13,431,658 | K35: 280 | L35: 280 | M35: =H35-J35-L35 -> 1,244,273 | N35: 69.2 | O35: 65.5 | P35: 91.5 | Q35: 26,889 | R35: 118,123
D36: 주 행 분 | E36: 24,800,000 | F36: 31,749,000 | G36: 3,491,683 | H36: 22,822,947 | I36: 3,491,683 | J36: 22,822,947 | M36: 0 | N36: 92.0 | O36: 71.9 | P36: 100.0
C37: 담배소비세 | E37: 17,000,000 | F37: 17,500,000 | G37: 6,055 | H37: 10,496,616 | I37: 6,055 | J37: 10,496,616 | M37: 0 | N37: 61.7 | O37: 60.0 | P37: 100.0 | R37: 236
C38: 지방소득세 | E38: 62,300,000 | F38: 83,300,000 | G38: 3,249,033 | H38: 106,691,814 | I38: 3,156,916 | J38: 105,537,387 | M38: 1,154,427 | N38: 169.4 | O38: 126.7 | P38: 98.9 | Q38: 372,854 | R38: 1,459,403
C39: 주 행 세 | M39: 0
C40: 농업소득세 | M40: 0
C41: 도 축 세 | M41: 0
C42: 종합토지세 | M42: 0
C43: 도시계획세 | M43: 0
C44: 사 업 소세 | M44: 0
A45: 과 년 도 | B45: 계 | E45: =SUM(E46:E48) -> 1,250,000 | F45: =SUM(F46:F48) -> 1,350,000 | G45: -78,825 | H45: 7,670,512 | I45: 72,521 | J45: -88,090 | K45: 327,267 | L45: 904,188 | M45: 6,854,414 | N45: -7.0 | O45: -6.5 | P45: -1.1 | Q45: =SUM(Q46:Q48) -> 104,072 | R45: =SUM(R46:R48) -> 3,560,407
B46: 도 세 | E46: 340,000 | F46: 340,000 | G46: -4,533 | H46: -17,311 | I46: 1,555 | J46: -1,142,043 | K46: 18,144 | L46: 32,936 | M46: =H46-J46-L46 -> 1,091,796 | N46: -335.9 | O46: -335.9 | P46: 6,597.2 | Q46: 10,743 | R46: 1,275,237
B47: 지방교육세 | E47: 410,000 | F47: 410,000 | G47: -1,693 | H47: 1,234,572 | I47: 23,885 | J47: 473,249 | K47: 62,113 | L47: 120,554 | M47: =H47-J47-L47 -> 640,769 | N47: 115.4 | O47: 115.4 | P47: 38.3 | Q47: 2,566 | R47: 119,675
B48: 시 군 세 | E48: 500,000 | F48: 600,000 | G48: -72,599 | H48: 6,453,251 | I48: 47,081 | J48: 580,704 | K48: 247,010 | L48: 750,698 | M48: =H48-J48-L48 -> 5,121,849 | N48: 116.1 | O48: 96.8 | P48: 9.0 | Q48: 90,763 | R48: 2,165,495
